[Event "Polofinale MCR junioru 2023"]
[Site "Czech Republic"]
[Date "2023.11.15"]
[Round "6.9"]
[White "Winter, Ondrej"]
[Black "Jasso, Matej"]
[Result "1-0"]
[TimeControl "90 min per 40 moves + 15 min + 30 sec / move from move 1"]
[WhiteFideId "23702192"]
[BlackFideId "23710748"]
[WhiteElo "2163"]
[BlackElo "2033"]

1. e4 {[%clk 01:30:54]} {[%emt 00:00:05]} c5 {[%clk 01:30:34]} {[%emt
00:00:27]} 2. Nf3 {[%clk 01:30:59]} {[%emt 00:00:24]} d6 {[%clk 01:30:31]}
{[%emt 00:00:34]} 3. Bb5+ {[%clk 01:30:58]} {[%emt 00:00:31]} Bd7 {[%clk
01:30:08]} {[%emt 00:00:52]} 4. Bxd7+ {[%clk 01:31:13]} {[%emt 00:00:14]} Qxd7
{[%clk 01:30:28]} {[%emt 00:00:10]} 5. O-O {[%clk 01:31:33]} {[%emt 00:00:11]}
Nf6 {[%clk 01:30:44]} {[%emt 00:00:14]} 6. Re1 {[%clk 01:31:57]} {[%emt
00:00:06]} Nc6 {[%clk 01:31:11]} {[%emt 00:00:03]} 7. c3 {[%clk 01:32:18]}
{[%emt 00:00:10]} e6 {[%clk 01:31:37]} {[%emt 00:00:04]} 8. d4 {[%clk
01:32:42]} {[%emt 00:00:05]} cxd4 {[%clk 01:32:04]} {[%emt 00:00:04]} 9. cxd4
{[%clk 01:33:05]} {[%emt 00:00:06]} d5 {[%clk 01:32:33]} {[%emt 00:00:02]} 10.
e5 {[%clk 01:33:21]} {[%emt 00:00:13]} Ne4 {[%clk 01:32:54]} {[%emt 00:00:10]}
11. Nbd2 {[%clk 01:33:26]} {[%emt 00:00:25]} Nxd2 {[%clk 01:33:19]} {[%emt
00:00:04]} 12. Bxd2 {[%clk 01:33:50]} {[%emt 00:00:06]} Be7 {[%clk 01:32:57]}
{[%emt 00:00:53]} 13. Rc1 {[%clk 01:34:08]} {[%emt 00:00:11]} O-O {[%clk
01:32:31]} {[%emt 00:00:56]} 14. a3 {[%clk 01:34:36]} {[%emt 00:00:03]} b5
{[%clk 01:24:27]} {[%emt 00:08:33]} 15. Rc3 {[%clk 01:32:50]} {[%emt 00:02:16]}
b4 {[%clk 01:16:04]} {[%emt 00:08:54]} 16. Rd3 {[%clk 01:32:54]} {[%emt
00:00:26]} Rfc8 {[%clk 01:12:41]} {[%emt 00:03:52]} 17. h4 {[%clk 01:31:13]}
{[%emt 00:02:12]} h6 {[%clk 00:49:13]} {[%emt 00:23:58]} 18. Nh2 {[%clk
01:27:23]} {[%emt 00:04:19]} bxa3 {[%clk 00:37:21]} {[%emt 00:12:23]} 19. bxa3
{[%clk 01:27:35]} {[%emt 00:00:18]} Qd8 {[%clk 00:28:36]} {[%emt 00:09:15]} 20.
Qg4 {[%clk 01:19:39]} {[%emt 00:08:26]} Kh8 {[%clk 00:23:12]} {[%emt 00:05:53]}
21. Rg3 {[%clk 01:02:59]} {[%emt 00:17:10]} Qf8 {[%clk 00:19:14]} {[%emt
00:04:29]} 22. Nf3 {[%clk 00:43:23]} {[%emt 00:20:05]} Nd8 {[%clk 00:19:21]}
{[%emt 00:00:23]} 23. Qh5 {[%clk 00:42:50]} {[%emt 00:01:03]} Rc4 {[%clk
00:13:47]} {[%emt 00:06:04]} 24. Rb1 {[%clk 00:34:21]} {[%emt 00:09:00]} Rac8
{[%clk 00:12:26]} {[%emt 00:01:50]} 25. Be3 {[%clk 00:30:23]} {[%emt 00:04:28]}
Rc3 {[%clk 00:11:15]} {[%emt 00:01:41]} 26. a4 {[%clk 00:29:34]} {[%emt
00:01:20]} R3c4 {[%clk 00:09:51]} {[%emt 00:01:54]} 27. Ra1 {[%clk 00:23:48]}
{[%emt 00:06:15]} R8c7 {[%clk 00:09:04]} {[%emt 00:01:17]} 28. Rh3 {[%clk
00:22:03]} {[%emt 00:02:15]} Kh7 {[%clk 00:04:40]} {[%emt 00:04:54]} 29. a5
{[%clk 00:17:55]} {[%emt 00:04:38]} Rd7 {[%clk 00:04:06]} {[%emt 00:01:05]} 30.
a6 {[%clk 00:16:00]} {[%emt 00:02:25]} Rdc7 {[%clk 00:04:31]} {[%emt 00:00:05]}
31. Kh1 {[%clk 00:15:51]} {[%emt 00:00:39]} R7c6 {[%clk 00:04:04]} {[%emt
00:00:57]} 32. Bd2 {[%clk 00:12:36]} {[%emt 00:03:45]} Rc2 {[%clk 00:03:25]}
{[%emt 00:01:07]} 33. Be3 {[%clk 00:12:18]} {[%emt 00:00:50]} R2c4 {[%clk
00:03:47]} {[%emt 00:00:07]} 34. Qg4 {[%clk 00:12:17]} {[%emt 00:00:31]} f5
{[%clk 00:02:05]} {[%emt 00:02:12]} 35. exf6 {[%clk 00:12:08]} {[%emt
00:00:39]} Bxf6 {[%clk 00:02:28]} {[%emt 00:00:07]} 36. Rg3 {[%clk 00:07:20]}
{[%emt 00:05:19]} Kh8 {[%clk 00:02:29]} {[%emt 00:00:29]} 37. Rb1 {[%clk
00:07:11]} {[%emt 00:00:38]} e5 {[%clk 00:01:30]} {[%emt 00:01:29]} 38. Rb8
{[%clk 00:06:47]} {[%emt 00:00:54]} exd4 {[%clk 00:01:24]} {[%emt 00:00:37]} 39.
Bxd4 {[%clk 00:04:48]} {[%emt 00:02:28]} Bxd4 {[%clk 00:00:35]} {[%emt
00:01:20]} 40. Nxd4 {[%clk 00:04:05]} {[%emt 00:01:13]} Rd6 {[%clk 00:00:47]}
{[%emt 00:00:17]} 41. Rf3 {[%clk 00:00:54]} {[%emt 00:03:41]} Rf6 {[%clk
00:10:25]} {[%emt 00:06:23]} 42. Qd7 {[%clk 00:12:29]} {[%emt 00:04:55]} Rxd4
{[%clk 00:05:26]} {[%emt 00:05:28]} 43. Rxd8 {[%clk 00:12:28]} {[%emt
00:00:30]} Rxf3 {[%clk 00:05:43]} {[%emt 00:00:14]} 44. gxf3 {[%clk 00:12:52]}
{[%emt 00:00:06]} 1-0

[Event "Polofinale MCR junioru 2023"]
[Site "Czech Republic"]
[Date "2023.11.15"]
[Round "6.10"]
[White "Zezula, Jakub"]
[Black "Vilimek, Vit"]
[Result "0-1"]
[TimeControl "90 min per 40 moves + 15 min + 30 sec / move from move 1"]
[WhiteFideId "23723203"]
[BlackFideId "23718218"]
[WhiteElo "2002"]
[BlackElo "2163"]

1. e4 {[%clk 01:30:57]} {[%emt 00:00:02]} c6 {[%clk 01:30:22]} {[%emt
00:00:40]} 2. d4 {[%clk 01:31:09]} {[%emt 00:00:17]} d5 {[%clk 01:30:38]}
{[%emt 00:00:14]} 3. Nc3 {[%clk 01:30:23]} {[%emt 00:00:46]} dxe4 {[%clk
01:31:00]} {[%emt 00:00:08]} 4. Nxe4 {[%clk 01:31:18]} {[%emt 00:00:05]} Nf6
{[%clk 01:31:26]} {[%emt 00:00:03]} 5. Nxf6+ {[%clk 01:31:06]} {[%emt
00:00:42]} exf6 {[%clk 01:31:54]} {[%emt 00:00:02]} 6. c3 {[%clk 01:30:59]}
{[%emt 00:00:38]} Bd6 {[%clk 01:32:18]} {[%emt 00:00:05]} 7. Nf3 {[%clk
01:30:00]} {[%emt 00:01:29]} O-O {[%clk 01:32:21]} {[%emt 00:00:28]} 8. Be2
{[%clk 01:30:12]} {[%emt 00:00:18]} Re8 {[%clk 01:31:46]} {[%emt 00:01:05]} 9.
O-O {[%clk 01:30:20]} {[%emt 00:00:21]} Bf5 {[%clk 01:28:10]} {[%emt 00:04:06]}
10. h3 {[%clk 01:30:25]} {[%emt 00:00:25]} Nd7 {[%clk 01:28:27]} {[%emt
00:00:13]} 11. Be3 {[%clk 01:28:43]} {[%emt 00:02:13]} Nf8 {[%clk 01:28:05]}
{[%emt 00:00:51]} 12. Bd3 {[%clk 01:28:34]} {[%emt 00:00:40]} Be6 {[%clk
01:24:02]} {[%emt 00:04:32]} 13. Re1 {[%clk 01:25:50]} {[%emt 00:03:14]} Bc7
{[%clk 01:22:48]} {[%emt 00:01:45]} 14. Qd2 {[%clk 01:22:17]} {[%emt 00:04:03]}
Qd6 {[%clk 01:22:33]} {[%emt 00:00:45]} 15. c4 {[%clk 01:17:59]} {[%emt
00:04:47]} Ng6 {[%clk 01:21:34]} {[%emt 00:01:29]} 16. Rad1 {[%clk 01:12:40]}
{[%emt 00:05:49]} a5 {[%clk 01:10:11]} {[%emt 00:11:54]} 17. b3 {[%clk
01:00:43]} {[%emt 00:12:26]} a4 {[%clk 01:06:50]} {[%emt 00:03:53]} 18. b4
{[%clk 00:59:02]} {[%emt 00:02:10]} b5 {[%clk 01:06:53]} {[%emt 00:00:26]} 19.
d5 {[%clk 00:57:45]} {[%emt 00:01:47]} cxd5 {[%clk 00:58:57]} {[%emt 00:08:27]}
20. Bxg6 {[%clk 00:54:19]} {[%emt 00:03:56]} fxg6 {[%clk 00:54:57]} {[%emt
00:04:30]} 21. cxd5 {[%clk 00:54:17]} {[%emt 00:00:31]} Bf7 {[%clk 00:50:26]}
{[%emt 00:05:02]} 22. Bc5 {[%clk 00:50:41]} {[%emt 00:04:07]} Rxe1+ {[%clk
00:45:25]} {[%emt 00:05:30]} 23. Qxe1 {[%clk 00:50:33]} {[%emt 00:00:38]} Qd7
{[%clk 00:39:47]} {[%emt 00:06:08]} 24. d6 {[%clk 00:47:28]} {[%emt 00:03:34]}
Re8 {[%clk 00:39:45]} {[%emt 00:00:32]} 25. Qd2 {[%clk 00:47:16]} {[%emt
00:00:42]} Bb8 {[%clk 00:38:30]} {[%emt 00:01:46]} 26. Nd4 {[%clk 00:27:03]}
{[%emt 00:20:43]} Bc4 {[%clk 00:31:22]} {[%emt 00:07:38]} 27. Kh1 {[%clk
00:22:32]} {[%emt 00:05:01]} Bd5 {[%clk 00:27:14]} {[%emt 00:04:38]} 28. Kg1
{[%clk 00:21:23]} {[%emt 00:01:39]} Bc4 {[%clk 00:27:12]} {[%emt 00:00:32]} 29.
Kh1 {[%clk 00:17:29]} {[%emt 00:04:24]} Re5 {[%clk 00:23:55]} {[%emt 00:03:46]}
30. Nf3 {[%clk 00:05:15]} {[%emt 00:12:44]} Re2 {[%clk 00:22:27]} {[%emt
00:02:00]} 31. Qc3 {[%clk 00:05:27]} {[%emt 00:00:17]} Bxa2 {[%clk 00:16:01]}
{[%emt 00:06:55]} 32. Nd4 {[%clk 00:05:44]} {[%emt 00:00:14]} Re8 {[%clk
00:14:57]} {[%emt 00:01:33]} 33. Nxb5 {[%clk 00:04:41]} {[%emt 00:01:34]} Bb3
{[%clk 00:13:13]} {[%emt 00:02:14]} 34. Rd3 {[%clk 00:03:52]} {[%emt 00:01:19]}
Qxb5 {[%clk 00:04:43]} {[%emt 00:09:00]} 35. d7 {[%clk 00:04:16]} {[%emt
00:00:06]} Rd8 {[%clk 00:05:10]} {[%emt 00:00:03]} 36. Be7 {[%clk 00:04:29]}
{[%emt 00:00:17]} Rxd7 {[%clk 00:05:15]} {[%emt 00:00:25]} 37. Qc8+ {[%clk
00:04:39]} {[%emt 00:00:19]} Kf7 {[%clk 00:05:40]} {[%emt 00:00:06]} 38. Qxd7
{[%clk 00:04:13]} {[%emt 00:00:56]} Qxd7 {[%clk 00:06:08]} {[%emt 00:00:03]} 39.
Rxd7 {[%clk 00:04:35]} {[%emt 00:00:06]} a3 {[%clk 00:06:01]} {[%emt 00:00:38]}
40. Bc5+ {[%clk 00:04:08]} {[%emt 00:00:56]} Ke6 {[%clk 00:05:50]} {[%emt
00:00:41]} 41. Rd3 {[%clk 00:11:54]} {[%emt 00:08:14]} a2 {[%clk 00:20:14]}
{[%emt 00:01:37]} 42. Bd4 {[%clk 00:12:19]} {[%emt 00:00:05]} Be5 {[%clk
00:20:10]} {[%emt 00:00:34]} 43. Re3 {[%clk 00:12:11]} {[%emt 00:00:38]} Kd5
{[%clk 00:20:16]} {[%emt 00:00:23]} 44. Rxe5+ {[%clk 00:11:46]} {[%emt
00:00:56]} Kxd4 {[%clk 00:18:25]} {[%emt 00:02:22]} 45. Re1 {[%clk 00:11:31]}
{[%emt 00:00:44]} Bc2 {[%clk 00:18:46]} {[%emt 00:00:08]} 46. Ra1 {[%clk
00:11:51]} {[%emt 00:00:10]} Bb1 {[%clk 00:19:11]} {[%emt 00:00:06]} 0-1

[Event "Polofinale MCR junioru 2023"]
[Site "Czech Republic"]
[Date "2023.11.15"]
[Round "6.11"]
[White "Hlavina, Matous"]
[Black "Svacina, Tobias"]
[Result "1/2-1/2"]
[TimeControl "90 min per 40 moves + 15 min + 30 sec / move from move 1"]
[WhiteFideId "386650"]
[BlackFideId "385859"]
[WhiteElo "2134"]
[BlackElo "1941"]

1. e4 {[%clk 01:30:53]} {[%emt 00:00:02]} c5 {[%clk 01:30:04]} {[%emt
00:01:00]} 2. Nf3 {[%clk 01:31:12]} {[%emt 00:00:11]} Nc6 {[%clk 01:29:20]}
{[%emt 00:01:14]} 3. Nc3 {[%clk 01:27:05]} {[%emt 00:04:37]} Nf6 {[%clk
01:25:00]} {[%emt 00:04:50]} 4. d4 {[%clk 01:24:13]} {[%emt 00:03:22]} cxd4
{[%clk 01:25:17]} {[%emt 00:00:13]} 5. Nxd4 {[%clk 01:24:35]} {[%emt 00:00:08]}
Qb6 {[%clk 01:25:22]} {[%emt 00:00:25]} 6. Nb3 {[%clk 01:23:00]} {[%emt
00:02:05]} e6 {[%clk 01:23:57]} {[%emt 00:01:56]} 7. Bd3 {[%clk 01:21:06]}
{[%emt 00:02:23]} Bb4 {[%clk 01:22:52]} {[%emt 00:01:36]} 8. O-O {[%clk
01:19:37]} {[%emt 00:01:58]} a6 {[%clk 01:14:22]} {[%emt 00:09:01]} 9. Kh1
{[%clk 01:10:51]} {[%emt 00:09:14]} Qc7 {[%clk 01:01:33]} {[%emt 00:13:20]} 10.
f4 {[%clk 01:08:16]} {[%emt 00:03:05]} h5 {[%clk 00:53:20]} {[%emt 00:08:43]}
11. Qe2 {[%clk 01:06:11]} {[%emt 00:02:16]} h4 {[%clk 00:49:45]} {[%emt
00:04:25]} 12. e5 {[%clk 01:01:12]} {[%emt 00:05:29]} Nh5 {[%clk 00:45:35]}
{[%emt 00:04:40]} 13. Ne4 {[%clk 00:57:45]} {[%emt 00:03:56]} b5 {[%clk
00:41:25]} {[%emt 00:04:40]} 14. c3 {[%clk 00:56:12]} {[%emt 00:02:02]} Be7
{[%clk 00:38:38]} {[%emt 00:03:18]} 15. Be3 {[%clk 00:55:49]} {[%emt 00:00:53]}
Bb7 {[%clk 00:38:24]} {[%emt 00:00:44]} 16. Nbc5 {[%clk 00:55:21]} {[%emt
00:00:58]} Nd8 {[%clk 00:37:17]} {[%emt 00:01:37]} 17. b4 {[%clk 00:48:32]}
{[%emt 00:07:20]} Bc6 {[%clk 00:36:52]} {[%emt 00:00:54]} 18. a4 {[%clk
00:41:52]} {[%emt 00:07:11]} bxa4 {[%clk 00:35:28]} {[%emt 00:01:55]} 19. Nxa4
{[%clk 00:41:06]} {[%emt 00:01:14]} f5 {[%clk 00:28:55]} {[%emt 00:07:03]} 20.
Nd6+ {[%clk 00:25:13]} {[%emt 00:16:24]} Kf8 {[%clk 00:24:13]} {[%emt
00:05:11]} 21. Rf3 {[%clk 00:23:02]} {[%emt 00:02:42]} Nf7 {[%clk 00:22:07]}
{[%emt 00:02:36]} 22. Nb6 {[%clk 00:21:26]} {[%emt 00:02:05]} Rb8 {[%clk
00:21:55]} {[%emt 00:00:42]} 23. Nbc4 {[%clk 00:21:05]} {[%emt 00:00:51]} Bd5
{[%clk 00:14:35]} {[%emt 00:07:50]} 24. Rxa6 {[%clk 00:17:26]} {[%emt
00:04:09]} Bxd6 {[%clk 00:08:57]} {[%emt 00:06:08]} 25. exd6 {[%clk 00:14:49]}
{[%emt 00:03:07]} Qc8 {[%clk 00:08:45]} {[%emt 00:00:42]} 26. Nb6 {[%clk
00:08:53]} {[%emt 00:06:26]} Bxf3 {[%clk 00:06:59]} {[%emt 00:02:16]} 27. Qxf3
{[%clk 00:02:44]} {[%emt 00:06:40]} Qxc3 {[%clk 00:05:56]} {[%emt 00:01:32]} 28.
Nxd7+ {[%clk 00:02:39]} {[%emt 00:00:35]} Kg8 {[%clk 00:06:15]} {[%emt
00:00:11]} 29. Nxb8 {[%clk 00:02:18]} {[%emt 00:00:51]} Qxd3 {[%clk 00:06:36]}
{[%emt 00:00:09]} 30. Ra1 {[%clk 00:01:57]} {[%emt 00:00:52]} Qxd6 {[%clk
00:05:14]} {[%emt 00:01:51]} 31. Nc6 {[%clk 00:01:56]} {[%emt 00:00:22]} Nf6
{[%clk 00:04:10]} {[%emt 00:01:42]} 32. Bc5 {[%clk 00:01:45]} {[%emt 00:00:41]}
Qd2 {[%clk 00:02:18]} {[%emt 00:02:23]} 33. Rd1 {[%clk 00:02:04]} {[%emt
00:00:11]} Qc2 {[%clk 00:02:22]} {[%emt 00:00:26]} 34. Nd4 {[%clk 00:01:17]}
{[%emt 00:01:17]} Qc4 {[%clk 00:02:13]} {[%emt 00:00:39]} 35. Kg1 {[%clk
00:00:51]} {[%emt 00:00:56]} h3 {[%clk 00:02:10]} {[%emt 00:00:33]} 36. gxh3
{[%clk 00:00:48]} {[%emt 00:00:33]} Ne4 {[%clk 00:02:09]} {[%emt 00:00:31]} 37.
Qd3 {[%clk 00:00:48]} {[%emt 00:00:30]} Qd5 {[%clk 00:02:14]} {[%emt 00:00:26]}
38. Ne2 {[%clk 00:00:47]} {[%emt 00:00:30]} Qa8 {[%clk 00:01:14]} {[%emt
00:01:30]} 39. Nc3 {[%clk 00:00:38]} {[%emt 00:00:39]} Nxc3 {[%clk 00:00:57]}
{[%emt 00:00:47]} 40. Qxc3 {[%clk 00:01:05]} {[%emt 00:00:03]} Rh6 {[%clk
00:01:23]} {[%emt 00:00:04]} 41. Rd3 {[%clk 00:14:36]} {[%emt 00:02:20]} Qe4
{[%clk 00:13:19]} {[%emt 00:04:14]} 42. Rg3 {[%clk 00:14:00]} {[%emt 00:01:04]}
e5 {[%clk 00:13:03]} {[%emt 00:00:47]} 43. Qe3 {[%clk 00:07:34]} {[%emt
00:06:53]} exf4 {[%clk 00:08:34]} {[%emt 00:05:02]} 44. Qxe4 {[%clk 00:07:53]}
{[%emt 00:00:11]} fxe4 {[%clk 00:09:00]} {[%emt 00:00:05]} 45. Rg4 {[%clk
00:08:14]} {[%emt 00:00:06]} g5 {[%clk 00:07:47]} {[%emt 00:01:45]} 46. Be7
{[%clk 00:08:21]} {[%emt 00:00:22]} Rxh3 {[%clk 00:06:42]} {[%emt 00:01:37]} 47.
Bxg5 {[%clk 00:07:02]} {[%emt 00:01:48]} Nxg5 {[%clk 00:06:43]} {[%emt
00:00:30]} 48. Rxg5+ {[%clk 00:07:31]} {[%emt 00:00:01]} Kh7 {[%clk 00:06:50]}
{[%emt 00:00:22]} 49. Rg4 {[%clk 00:07:50]} {[%emt 00:00:10]} Rb3 {[%clk
00:06:47]} {[%emt 00:00:35]} 50. Rxf4 {[%clk 00:07:57]} {[%emt 00:00:23]} Rxb4
{[%clk 00:07:09]} {[%emt 00:00:08]} 51. Kf2 {[%clk 00:08:21]} {[%emt 00:00:04]}
1/2-1/2

[Event "Polofinale MCR junioru 2023"]
[Site "Czech Republic"]
[Date "2023.11.15"]
[Round "6.12"]
[White "Stocek, Martin"]
[Black "Tillman, Stanislav"]
[Result "0-1"]
[TimeControl "90 min per 40 moves + 15 min + 30 sec / move from move 1"]
[WhiteFideId "380121"]
[BlackFideId "23714247"]
[WhiteElo "2125"]
[BlackElo "2021"]

1. d4 {[%clk 01:30:44]} {[%emt 00:00:15]} Nf6 {[%clk 01:30:51]} {[%emt
00:00:06]} 2. c4 {[%clk 01:31:09]} {[%emt 00:00:09]} e6 {[%clk 01:31:08]}
{[%emt 00:00:12]} 3. Nf3 {[%clk 01:31:33]} {[%emt 00:00:05]} d5 {[%clk
01:30:52]} {[%emt 00:00:46]} 4. Nc3 {[%clk 01:31:55]} {[%emt 00:00:08]} Bb4
{[%clk 01:26:57]} {[%emt 00:04:26]} 5. Qa4+ {[%clk 01:32:10]} {[%emt 00:00:15]}
Nc6 {[%clk 01:27:23]} {[%emt 00:00:04]} 6. e3 {[%clk 01:32:31]} {[%emt
00:00:09]} O-O {[%clk 01:26:15]} {[%emt 00:01:37]} 7. Bd2 {[%clk 01:32:05]}
{[%emt 00:00:57]} Bxc3 {[%clk 01:07:24]} {[%emt 00:19:21]} 8. Bxc3 {[%clk
01:31:57]} {[%emt 00:00:37]} Ne4 {[%clk 01:07:38]} {[%emt 00:00:16]} 9. Bd3
{[%clk 01:29:36]} {[%emt 00:02:51]} f5 {[%clk 01:03:20]} {[%emt 00:04:49]} 10.
Rc1 {[%clk 01:23:54]} {[%emt 00:06:11]} a6 {[%clk 00:58:37]} {[%emt 00:05:14]}
11. O-O {[%emt 00:16:03]} Qe8 {[%clk 00:47:39]} {[%emt 00:08:11]} 12. Qc2
{[%clk 00:55:45]} {[%emt 00:16:22]} Rb8 {[%clk 00:38:06]} {[%emt 00:10:04]} 13.
Bd2 {[%clk 00:52:12]} {[%emt 00:04:03]} Bd7 {[%clk 00:36:34]} {[%emt 00:02:01]}
14. a4 {[%clk 00:40:20]} {[%emt 00:12:22]} Qh5 {[%emt 00:21:24]} 15. b4 {[%clk
00:19:05]} {[%emt 00:06:09]} g5 {[%clk 00:30:37]} {[%emt 00:01:10]} 16. b5
{[%clk 00:14:23]} {[%emt 00:05:12]} g4 {[%clk 00:29:17]} {[%emt 00:01:50]} 17.
Ne5 {[%clk 00:14:35]} {[%emt 00:00:18]} Nxe5 {[%clk 00:29:40]} {[%emt
00:00:07]} 18. dxe5 {[%clk 00:15:02]} {[%emt 00:00:03]} axb5 {[%clk 00:25:03]}
{[%emt 00:05:07]} 19. axb5 {[%clk 00:15:31]} {[%emt 00:00:01]} c6 {[%clk
00:24:17]} {[%emt 00:01:16]} 20. Bb4 {[%clk 00:12:01]} {[%emt 00:04:00]} Rf7
{[%clk 00:23:18]} {[%emt 00:01:29]} 21. Bd6 {[%clk 00:10:28]} {[%emt 00:02:02]}
Nxd6 {[%clk 00:22:33]} {[%emt 00:01:16]} 22. exd6 {[%clk 00:10:57]} {[%emt
00:00:01]} Rf6 {[%clk 00:22:56]} {[%emt 00:00:07]} 23. f4 {[%clk 00:10:09]}
{[%emt 00:01:18]} Rh6 {[%clk 00:14:48]} {[%emt 00:08:37]} 24. g3 {[%clk
00:10:38]} {[%emt 00:00:01]} dxc4 {[%clk 00:15:12]} {[%emt 00:00:07]} 25. Bxc4
{[%clk 00:11:01]} {[%emt 00:00:06]} cxb5 {[%clk 00:15:36]} {[%emt 00:00:07]} 26.
Bb3 {[%clk 00:10:35]} {[%emt 00:00:56]} Bc6 {[%clk 00:14:43]} {[%emt 00:01:22]}
27. Rfd1 {[%clk 00:09:40]} {[%emt 00:01:25]} Rd8 {[%clk 00:14:43]} {[%emt
00:00:30]} 28. Qa2 {[%clk 00:09:24]} {[%emt 00:00:46]} Qe8 {[%clk 00:12:14]}
{[%emt 00:02:59]} 29. Rc5 {[%clk 00:08:43]} {[%emt 00:01:12]} Rf6 {[%clk
00:10:53]} {[%emt 00:01:51]} 30. Re5 {[%clk 00:08:22]} {[%emt 00:00:51]} Kf7
{[%clk 00:10:19]} {[%emt 00:01:04]} 31. Qa5 {[%clk 00:08:35]} {[%emt 00:00:15]}
h5 {[%clk 00:10:21]} {[%emt 00:00:29]} 32. Qb4 {[%clk 00:05:50]} {[%emt
00:03:16]} h4 {[%clk 00:09:46]} {[%emt 00:01:05]} 33. Bc2 {[%clk 00:04:15]}
{[%emt 00:02:05]} hxg3 {[%clk 00:09:42]} {[%emt 00:00:34]} 34. hxg3 {[%clk
00:04:44]} {[%emt 00:00:01]} Qh8 {[%clk 00:09:44]} {[%emt 00:00:27]} 35. e4
{[%clk 00:04:13]} {[%emt 00:01:02]} Qh3 {[%clk 00:09:53]} {[%emt 00:00:20]} 36.
exf5 {[%clk 00:02:27]} {[%emt 00:02:17]} Qg2# {[%emt 00:00:11]} 0-1